Workbook

Sheet Risk
D3: Crop Cultivar | E3: Bailey | G3: Arthropod | I3: Index | J3: Low | N3: Med | R3: High
D4: Crop Plant Population | E4: 1 to 2 plants/row ft. | H4: Southern Corn Rootworm | I4: =SCR_RiskIndex -> 95 | J4: 95 | K4: 95 | L4: 95 | M4: 95 | N4: 95 | O4: 95 | P4: 95 | Q4: 95 | R4: 95 | S4: 95 | T4: 95 | U4: 95
D5: Crop Planting Date | E5: 2020-05-05 | H5: Spider Mites | I5: =SM_RiskIndex -> 70 | J5: 70 | K5: 70 | L5: 70 | M5: 70 | N5: 70 | O5: 70 | P5: 70 | Q5: 70 | R5: 70 | S5: 70 | T5: 70 | U5: 70
D6: Crop Row Pattern | E6: Single (32-38 inches) | H6: Thrips | I6: =THRP_RiskIndex -> 65 | J6: 65 | K6: 65 | L6: 65 | M6: 65 | N6: 65 | O6: 65 | P6: 65 | Q6: 65 | R6: 65 | S6: 65 | T6: 65 | U6: 65
D7: Field Borders Early Season | E7: Clean | G7: Disease (Foliar) | I7: Index | J7: Low | N7: Med | R7: High
D8: Field Borders Late Season | E8: Mowed | H8: Early/Late Leaf Spot | I8: =LS_RiskIndex -> 58 | J8: 58 | K8: 58 | L8: 58 | M8: 58 | N8: 58 | O8: 58 | P8: 58 | Q8: 58 | R8: 58 | S8: 58 | T8: 58 | U8: 58
D9: Field Crop History 1 Year Ago | E9: Cotton | H9: Tomato Spotted Wilt Virus | I9: =TSWV_RiskIndex -> 100 | J9: 100 | K9: 100 | L9: 100 | M9: 100 | N9: 100 | O9: 100 | P9: 100 | Q9: 100 | R9: 100 | S9: 100 | T9: 100 | U9: 100
D10: Field Crop History 2 Years Ago | E10: Sorghum | G10: Disease (Soil Borne) | I10: Index | J10: Low | N10: Med | R10: High
D11: Field Crop History 3 Years Ago | E11: Sorghum | H11: Cylindrocladium Black Rot | I11: =CBR_RiskIndex -> 65 | J11: 65 | K11: 65 | L11: 65 | M11: 65 | N11: 65 | O11: 65 | P11: 65 | Q11: 65 | R11: 65 | S11: 65 | T11: 65 | U11: 65
D12: Field Crop History 4 Years Ago | E12: Soybean | H12: Sclerotinia | I12: =SCL_RiskIndex -> 130 | J12: 130 | K12: 130 | L12: 130 | M12: 130 | N12: 130 | O12: 130 | P12: 130 | Q12: 130 | R12: 130 | S12: 130 | T12: 130 | U12: 130
D13: Field Irrigation | E13: Irrigated | H13: Southern Stem Rot | I13: =SSR_RiskIndex -> 50 | J13: 50 | K13: 50 | L13: 50 | M13: 50 | N13: 50 | O13: 50 | P13: 50 | Q13: 50 | R13: 50 | S13: 50 | T13: 50 | U13: 50
D14: Field Previous Weed Control | E14: Good | G14: Nematode | I14: Index | J14: Low | N14: Med | R14: High
D15: Field Tillage | E15: Conventional | H15: Northern Rootknot | I15: =NRN_RiskIndex -> 25 | J15: 25 | K15: 25 | L15: 25 | M15: 25 | N15: 25 | O15: 25 | P15: 25 | Q15: 25 | R15: 25 | S15: 25 | T15: 25 | U15: 25
D16: Leaf Spot Chorothalonil Applications | E16: 3 or more | H16: Peanut Rootknot | I16: =PRN_RiskIndex -> 32 | J16: 32 | K16: 32 | L16: 32 | M16: 32 | N16: 32 | O16: 32 | P16: 32 | Q16: 32 | R16: 32 | S16: 32 | T16: 32 | U16: 32
D17: Leaf Spot Management | E17: Leafspot advisory throughout season | H17: Sting | I17: =SN_RiskIndex -> 45 | J17: 45 | K17: 45 | L17: 45 | M17: 45 | N17: 45 | O17: 45 | P17: 45 | Q17: 45 | R17: 45 | S17: 45 | T17: 45 | U17: 45
D18: Pest History | G18: Plants | I18: Index | J18: Low | N18: Med | R18: High
D19: Cylindrocladium Black Rot | E19: No history | H19: Weeds | I19: =WDS_RiskIndex -> 145 | J19: 145 | K19: 145 | L19: 145 | M19: 145 | N19: 145 | O19: 145 | P19: 145 | Q19: 145 | R19: 145 | S19: 145 | T19: 145 | U19: 145
D20: Early/Late Leaf Spot | E20: Present but not a problem with a good fungicide program
D21: Sclerotinia | E21: No History | G21: Red Dots - Change practices to eliminate. Yellow Dots - Consider adjusting practices to reduce risk. Green Dots - Risk is acceptable for selected practices.
D22: Southern Corn Rootworm | E22: No history
D23: Southern Stem Rot | E23: No history
D24: Pest History Nematodes
D25: Northern Rootknot | E25: Very Low (NCDA index < 20)
D26: Peanut Rootknot | E26: Very Low (NCDA index < 20)
D27: Sting | E27: Very Low (NCDA index < 20)
D28: Pest Hosts | E28: Field Corn
D29: Soil Drainage Class | E29: Well
D30: Soil pH | E30: 6
D31: Soil Texture | E31: Loam
D32: Treatments Fumigants | E32: None
D33: Treatments Post Emergence | E33: None
D36: Treatments Pre Emergence | E36: None
D39: Weed Management Practices | E39: PRE + EPOST + MPOST + LPOST + Hand Weed
D40: Weed Species | E40: C. Ragweed and Palmer A. (ALS and PPO Resistant)

Sheet Log_TPL
A1: Field and Production Information
D3: Field Acreage (acres)
D5: Soil | E5: Mapped Series | F5: % of Field
D12: Tillage Practice | E12: Date | F12: Equipment
D17: Lime Applications | E17: Date | F17: Rate (lbs/acre)
D18: Current Year
D19: Last Year
D21: Seed Inoculation | E21: Date | F21: Inoculant
D24: Fertilizer | E24: Date | F24: N | G24: P2O5 | H24: K2O | I24: B | J24: Cu | K24: Fe | L24: Mn | M24: Mo | N24: S | O24: Zn
F25: lbs/acre
D31: Land Plaster | E31: Date | F31: Trade Name | G31: Type | H31: Method | I31: Rate (lbs/acre)
D34: Herbicides | E34: Date | F34: Trade Name | G34: Rate | H34: Trade Name | I34: Rate | J34: Trade Name | K34: Rate | L34: Trade Name | M34: Rate
D35: Burndown
D36: Preplant
D37: Preemergence
D38: At Cracking
D39: First Postemergence
D40: Second Postemergence
D41: Third Postemergence
D43: Leaf Spot Program | E43: Date | F43: Trade Name | G43: Rate | H43: Trade Name | I43: Rate | J43: Trade Name | K43: Rate
D57: Pest Treaments | E57: Date | F57: Trade Name | G57: Rate | H57: Trade Name | I57: Rate
D58: Sclerotina Blight
D60: CBR
D62: In-furrow Insecticide
D64: Foliar Insecticides
D66: Southern Corn Rootworm
D68: Spider Mites
D71: Development Dates | E71: Date
D72: Emergence
D73: First Flower
D74: First Peg
D75: Last Flower
D77: Development Moisture Status
D78: Planting to Emergence
D79: Emergence to Flowering
D80: Flowering to Pod Formation
D81: Pod Formation to Harvest
D83: Weeds at Harvest
D92: Pod Blasting Data | E92: Date | F92: White | G92: Yellow | H92: Orange | I92: Brown | J92: Black | K92: White | L92: Yellow | M92: Orange | N92: Brown | O92: Black | P92: Brown/Black
F93: Pod Count | K93: Percentage(%)
K94: =IF(SUM($F94:$J94)=0,NA(),F94/(SUM($F94:$J94))) ->  | L94: =IF(SUM($F94:$J94)=0,NA(),G94/(SUM($F94:$J94))) ->  | P94: =N94+O94 -> 
L95: =IF(SUM($F95:$J95)=0,NA(),G95/(SUM($F95:$J95))) ->  | M95: =IF(SUM($F95:$J95)=0,NA(),H95/(SUM($F95:$J95))) ->  | N95: =IF(SUM($F95:$J95)=0,NA(),I95/(SUM($F95:$J95))) ->  | O95: =IF(SUM($F95:$J95)=0,NA(),J95/(SUM($F95:$J95))) ->  | P95: =N95+O95 -> 
D99: Digging | E99: Date | F99: Equipment
D102: Harvest | E102: Date | F102: Equipment
D105: Yield Goal (lbs/acre)
D106: Yield (lbs/acre)
D107: Selling Price ($)
D109: Grading Results | E109: Grams (gr) | F109: Percentage (%)
D110: Foreign Material Sample
D111: Foreign Material | F111: =IFERROR(E111/E110,0) -> 0
D112: LSK | F112: =IFERROR(E112/E110,0) -> 0
D113: Moisture
D115: Cleaned Sample
D116: Fancy | F116: =IFERROR(E116/E115,0) -> 0
D117: Kernels Riding ELK Screen
D118: Total ELK Damage
D119: Net ELK | E119: =E117-E118 -> 0 | F119: =IFERROR(E119/E115,0) -> 0
D120: Kernels Riding Prescribed Screen
D122: Total KRS
D123: Damage KRS
D124: SMKRS | E124: =E122-E123 -> 0 | F124: =IFERROR(E124/E115,0) -> 0
D125: Sound Splits | F125: =IFERROR(E125/E115,0) -> 0
D126: Total SMK | F126: =F124+F125 -> 0
D127: Other Kernels | F127: =IFERROR(E127/E115,0) -> 0
D128: Damage Splits
D129: Total Damage | F129: =IFERROR(E129/E115,0) -> 0
D130: Total Kernels | F130: =F126+F127+F128+F129 -> 0
D131: Hulls | F131: =IFERROR(E131/E115,0) -> 0
D132: Total Kernels & Halls | F132: =F130+F131 -> 0
D133: Freeze Damage | F133: =IFERROR(E133/E115,0) -> 0
D134: Concealed RMD | F134: =IFERROR(E134/E115,0) -> 0
D135: Remarks
D138: Rainfall/Irrigation | E138: Date | F138: Amount(in) | G138: Month | J138: Amount(in)
G139: =IF(ISBLANK(E139),"",TEXT(E139,"mmm")) ->  | I139: Jan | J139: =SUMIF(G$139:G$238,"=" & I139,F$139:F$238) -> 0
G140: =IF(ISBLANK(E140),"",TEXT(E140,"mmm")) ->  | I140: Feb | J140: =SUMIF(G$139:G$238,"=" & I140,F$139:F$238) -> 0
I141: Mar | J141: 0
I142: Apr | J142: 0
I143: May | J143: 0
I144: Jun | J144: 0
I145: Jul | J145: 0
I146: Aug | J146: 0
I147: Sep | J147: 0
I148: Oct | J148: 0
I149: Nov | J149: 0
I150: Dec | J150: 0
G204: =IF(ISBLANK(E204),"",TEXT(E204,"mmm")) -> 

Sheet Log_Lists
A1: Tillage_Prac | B1: Land_Plaster_Meth | C1: Land_Plaster_Type | D1: Digging_Eq | E1: Combine | F1: Moisture_Status
A2: Disk | B2: Banded | C2: Bagged | D2: 2 Row Digger | E2: 2 Row Pull Type Combine | F2: Dry
A3: Chisel | B3: Broadcast | C3: Bulk | D3: 4 Row Digger | E3: 4 Row Pull Type Combine | F3: Adequate
A4: Moldboard plow | B4: Other | C4: Granular | D4: 6 Row Digger | E4: 6 Row Pull Type Combine | F4: Wet
A5: Cultivate | C5: Other | D5: Other | E5: 6 Row Self-Propelled Combine
A6: Bed | E6: 8 Row Self-Propelled Combine
A7: Rip | E7: Other
A8: Rip and Bed
A9: Strip Till
A10: No Till
A11: Other

Sheet Pests
A1: PestType | B1: Pest | C1: PestID
A2: Arthropod | B2: Southern Corn Rootworm | C2: SCR
A3: Arthropod | B3: Spider Mites | C3: SM
A4: Arthropod | B4: Thrips | C4: THRP
A5: Disease (Foliar) | B5: Early/Late Leaf Spot | C5: LS
A6: Disease (Foliar) | B6: Tomato Spotted Wilt Virus | C6: TSWV
A7: Disease (Soil Borne) | B7: Cylindrocladium Black Rot | C7: CBR
A8: Disease (Soil Borne) | B8: Sclerotinia | C8: SCL
A9: Disease (Soil Borne) | B9: Southern Stem Rot | C9: SSR
A10: Nematode | B10: Northern Rootknot | C10: NRN
A11: Nematode | B11: Peanut Rootknot | C11: PRN
A12: Nematode | B12: Sting | C12: SN
A13: Plants | B13: Weeds | C13: WDS

Sheet Lists
A1: Category | B1: Category_Pest | C1: CategoryID | D1: Category_List | E1: Category_List_Type | F1: Months | G1: Crop | H1: Soil_Texture | I1: Pest_History_CBR | J1: Pest_History_LS | K1: Pest_History_SCL | L1: Pest_History_SCR | M1: Pest_History_SSR | N1: Pest_History_Nematode | O1: Soil_pH_CBR | P1: Soil_pH_SCL | Q1: Leaf_Spot_Management | R1: Leaf_Spot_Chorothalonil_Applications | S1: Soil_Drainage_Class | T1: Field_Borders_Early_Season | U1: Field_Borders_Late_Season | V1: Field_Irrigation | W1: Field_Tillage | X1: Treatments_Post_Emergence | Y1: Treatments_Pre_Emergence | Z1: Crop_Plant_Population | AA1: Crop_Row_Pattern | AB1: Crop_Cultivar | AC1: Crop_Planting_Date_CBR | AD1: Crop_Planting_Date_LS | AE1: Crop_Planting_Date_SCL | AF1: Crop_Planting_Date_SCR | AG1: Crop_Planting_Date_TSWV | AH1: Weed_Species | AI1: Field_Previous_Weed_Control | AJ1: Weed_Management_Practices | AK1: Crop_Planting_Date_THRP | AL1: Treatments_Fumigants
A2: Crop_Cultivar | C2: Crop_Cultivar | D2: Crop_Cultivar | E2: Single | F2: January | G2: Clary Sage | H2: Loam | I2: High (incidence > 10%) | J2: A problem even with good fungicide program | K2: No History | L2: High | M2: A problem even with good fungicide program | N2: High (NCDA index ≥ 60) | O2: 5.7 or lower | P2: 5.7 or lower | Q2: Calendar spray schedule | R2: 3 or more | S2: Moderately Well | T2: Clean | U2: Mowed | V2: Irrigated | W2: Conventional | X2: Acephate | Y2: Acephate | Z2: 1 to 2 plants/row ft. | AA2: Single (32-38 inches) | AB2: Bailey | AC2: Jan 01 to May 05 | AD2: Jan 01 to May 20 | AE2: Jan 01 to May 20 | AF2: Jan 01 to May 01 | AG2: Jan 01 to May 05 | AH2: Annual Grass | AI2: Fair | AJ2: EPOST | AK2: Jan 01 to May 05 | AL2: Metam Sodium
A3: Crop_Plant_Population | C3: Crop_Plant_Population | D3: Crop_Plant_Population | E3: Single | F3: February | G3: Cotton | H3: Loamy Sand | I3: Low (incidence < 5%) | J3: No history | K3: Present and requires 0 sprays per year | L3: Low | M3: No history | N3: Low (20 ≤ NCDA index < 40) | O3: 5.8 or higher | P3: 5.8 to 6.5 | Q3: Calendar spray schedule with skipping when dry | R3: Less than 3 | S3: Poorly | T3: Weeds/Brush | U3: Not Mowed | V3: Non-irrigated | W3: Strip into Residue | X3: Comite | Y3: Admire Pro | Z3: 3 to 4 plants/row ft. | AA3: Twin (7 to 10 inches) | AB3: Champs | AC3: May 06 to May 20 | AD3: May 21 to Dec 31 | AE3: May 21 to Dec 31 | AF3: May 02 to May 15 | AG3: May 06 to May 15 | AH3: Annual Grass (ACC and ALS Resistant) | AI3: Good | AJ3: LPOST | AK3: May 06 to May 15 | AL3: None
A4: Crop_Planting_Date | B4: CBR | C4: Crop_Planting_Date | D4: Crop_Planting_Date_CBR | E4: Date | F4: March | G4: Fallow | H4: Sandy Loam | I4: Moderate (incidence 5-10%) | J4: Present but not a problem with a good fungicide program | K4: Present and requires 1 spray per year | L4: Moderate | M4: Present but not a problem with a good fungicide program | N4: Moderate (40 ≤ NCDA index < 60) | P4: 6.6 or higher | Q4: Leafspot advisory throughout season | S4: Somewhat Poorly | V4: Periodic Irrigation | X4: Danitol | Y4: AgLogic | Z4: 5 or more plants/row ft. | AB4: Emery | AC4: May 21 or Dec 31 | AF4: May 16 to Dec 31 | AG4: May 16 to Dec 31 | AH4: Annual Grass (ACC Resistant) | AI4: Poor | AJ4: MPOST | AK4: May 16 to Dec 31 | AL4: Telone II
A5: Crop_Planting_Date | B5: LS | C5: Crop_Planting_Date | D5: Crop_Planting_Date_LS | E5: Date | F5: April | G5: Field Corn | I5: No history | K5: Present and requires 2 or more sprays per year | L5: No history | N5: Very Low (NCDA index < 20) | S5: Well | X5: Lannate | Y5: Imidacloprid(Generic) | AB5: Sullivan | AH5: Annual Grass (ALS Resistant) | AJ5: None
A6: Crop_Planting_Date | B6: SCL | C6: Crop_Planting_Date | D6: Crop_Planting_Date_SCL | E6: Date | F6: May | G6: Forage Grasses | X6: Lorsban (Pilot 15 G) | Y6: None | AB6: Wynne | AH6: C. Lambsquarter | AJ6: PPI
A7: Crop_Planting_Date | B7: SCR | C7: Crop_Planting_Date | D7: Crop_Planting_Date_SCR | E7: Date | F7: June | G7: Melons | X7: None | Y7: Phorate 20G | AH7: C. Ragweed | AJ7: PPI + PRE
A8: Crop_Planting_Date | B8: THRP | C8: Crop_Planting_Date | D8: Crop_Planting_Date_THRP | E8: Date | F8: July | G8: Other | X8: Non-pyrethroids | Y8: Proline | AH8: C. Ragweed (ALS and PPO Resistance) | AJ8: PPL
A9: Crop_Planting_Date | B9: TSWV | C9: Crop_Planting_Date | D9: Crop_Planting_Date_TSWV | E9: Date | F9: August | G9: Peanut | X9: Pyrethoids | Y9: Propulse | AH9: C. Ragweed (ALS Resistance) | AJ9: PRE
A10: Crop_Row_Pattern | C10: Crop_Row_Pattern | D10: Crop_Row_Pattern | E10: Single | F10: September | G10: Small Grains | Y10: Thimet 20G | AH10: C. Ragweed (PPO Resistance) | AJ10: PRE + EPOST
A11: Field_Borders_Early_Season | C11: Field_Borders_Early_Season | D11: Field_Borders_Early_Season | E11: Single | F11: October | G11: Sorghum | Y11: Velum Total | AH11: C. Ragweed and Palmer A. (ALS and PPO Resistant) | AJ11: PRE + EPOST + Hand Weed
A12: Field_Borders_Late_Season | C12: Field_Borders_Late_Season | D12: Field_Borders_Late_Season | E12: Single | F12: November | G12: Soybean | AH12: C. Ragweed and Palmer A. (ALS Resistant) | AJ12: PRE + EPOST + MPOST
A13: Field_Crop_History_1_Year_Ago | C13: Field_Crop_History_1_Year_Ago | D13: Crop | E13: Single | F13: December | G13: Sweet Corn | AH13: C. Ragweed and Palmer A. (PPO Resistant) | AJ13: PRE + EPOST + MPOST + Hand Weed
A14: Field_Crop_History_2_Years_Ago | C14: Field_Crop_History_2_Years_Ago | D14: Crop | E14: Single | G14: Sweetpotato | AH14: C. Ragweed and Palmer Amaranth | AJ14: PRE + EPOST + MPOST + LPOST
A15: Field_Crop_History_3_Years_Ago | C15: Field_Crop_History_3_Years_Ago | D15: Crop | E15: Single | G15: Tobacco | AH15: Eclipta | AJ15: PRE + EPOST + MPOST + LPOST + Hand Weed
A16: Field_Crop_History_4_Years_Ago | C16: Field_Crop_History_4_Years_Ago | D16: Crop | E16: Single | G16: Vegetables | AH16: Others
A17: Field_Irrigation | C17: Field_Irrigation | D17: Field_Irrigation | E17: Single | AH17: Palmer Amaranth
A18: Field_Previous_Weed_Control | C18: Field_Previous_Weed_Control | D18: Field_Previous_Weed_Control | E18: Single | AH18: Palmer Amaranth (ALS and PPO Resistant)
A19: Field_Tillage | C19: Field_Tillage | D19: Field_Tillage | E19: Single | AH19: Palmer Amaranth (ALS Resistant)
A20: Leaf_Spot_Chorothalonil_Applications | C20: Leaf_Spot_Chorothalonil_Applications | D20: Leaf_Spot_Chorothalonil_Applications | E20: Single | AH20: Palmer Amaranth (PPO Resistant)
A21: Leaf_Spot_Management | C21: Leaf_Spot_Management | D21: Leaf_Spot_Management | E21: Single | AH21: Sedges
A22: Pest_History | B22: CBR | C22: Pest_History_CBR | D22: Pest_History_CBR | E22: Single | AH22: Sedges (ALS Resistant)
A23: Pest_History | B23: LS | C23: Pest_History_LS | D23: Pest_History_LS | E23: Single | AH23: Sicklepod
A24: Pest_History | B24: SCL | C24: Pest_History_SCL | D24: Pest_History_SCL | E24: Single
A25: Pest_History | B25: SCR | C25: Pest_History_SCR | D25: Pest_History_SCR | E25: Single
A26: Pest_History | B26: SSR | C26: Pest_History_SSR | D26: Pest_History_SSR | E26: Single
A27: Pest_History_Nematodes | B27: NRN | C27: Pest_History_Nematodes_NRN | D27: Pest_History_Nematode | E27: Single
A28: Pest_History_Nematodes | B28: PRN | C28: Pest_History_Nematodes_PRN | D28: Pest_History_Nematode | E28: Single
A29: Pest_History_Nematodes | B29: SN | C29: Pest_History_Nematodes_SN | D29: Pest_History_Nematode | E29: Single
A30: Pest_Hosts | C30: Pest_Hosts | D30: Crop | E30: Single
A31: Soil_Drainage_Class | C31: Soil_Drainage_Class | D31: Soil_Drainage_Class | E31: Single
A32: Soil_pH | B32: CBR | C32: Soil_pH | D32: Soil_pH_CBR | E32: pH
A33: Soil_pH | B33: SCL | C33: Soil_pH | D33: Soil_pH_SCL | E33: pH
A34: Soil_Texture | C34: Soil_Texture | D34: Soil_Texture | E34: Single
A35: Treatments_Fumigants | C35: Treatments_Fumigants | D35: Treatments_Fumigants | E35: Single
A36: Treatments_Post_Emergence | C36: Treatments_Post_Emergence | D36: Treatments_Post_Emergence | E36: Multi
A37: Treatments_Pre_Emergence | C37: Treatments_Pre_Emergence | D37: Treatments_Pre_Emergence | E37: Multi
A38: Weed_Management_Practices | C38: Weed_Management_Practices | D38: Weed_Management_Practices | E38: Single
A39: Weed_Species | C39: Weed_Species | D39: Weed_Species | E39: Single

Sheet Costs
A1: Category | B1: Item | C1: Cost | D1: Multiplier | F1: Category | G1: Max | H1: Min | I1: Cost | J1: Selection
A2: Base_Cost | C2: 565 | F2: Base_Cost | G2: =Cost_Base -> 565 | H2: =Cost_Base -> 565 | I2: =Cost_Base -> 565
A3: Crop_Cultivar | B3: Bailey | C3: 45 | F3: Crop_Cultivar | Crop_Plant_Population | Crop_Row_Pattern | G3: =calcCostMax(F3,J3) -> 172.5 | H3: =calcCostMin(F3,J3) -> 45 | I3: =calcCost(F3,J3) -> 45 | J3: =CONCATENATE(IF(ISBLANK(sel_Crop_Cultivar),"",sel_Crop_Cultivar)," | ",IF(ISBLANK(sel_Crop_Plant_Population),"",sel_Crop_Plant_Population)," | ",IF(ISBLANK(sel_Crop_Row_Pattern),"",sel_Crop_Row_Pattern)) -> Bailey | 1 to 2 plants/row ft. | Single (32-38 inches)
A4: Crop_Cultivar | B4: Champs | C4: 50 | F4: Field_Irrigation | G4: =calcCostMax(F4,J4) -> 100 | H4: =calcCostMin(F4,J4) -> 0 | I4: =calcCost(F4,J4) -> 100 | J4: =CONCATENATE(IF(ISBLANK(sel_Field_Irrigation),"",sel_Field_Irrigation)) -> Irrigated
A5: Crop_Cultivar | B5: Emery | C5: 60 | F5: Leaf_Spot_Management | G5: 83 | H5: 51 | I5: 51 | J5: =CONCATENATE(IF(ISBLANK(sel_Leaf_Spot_Management),"",sel_Leaf_Spot_Management)) -> Leafspot advisory throughout season
A6: Crop_Cultivar | B6: Sullivan | C6: 47 | F6: Treatments_Fumigants | G6: 45 | H6: 0 | I6: 0 | J6: =CONCATENATE(IF(ISBLANK(sel_Treatments_Fumigants),"",sel_Treatments_Fumigants)) -> None
A7: Crop_Cultivar | B7: Wynne | C7: 60 | F7: Treatments_Post_Emergence | G7: 137 | H7: 0 | I7: 0 | J7: =CONCATENATE(IF(ISBLANK(sel_Treatments_Post_Emergence),"",sel_Treatments_Post_Emergence)) -> None
A8: Crop_Plant_Population | B8: 1 to 2 plants/row ft. | D8: 1 | F8: Treatments_Pre_Emergence | G8: 162 | H8: 0 | I8: 0 | J8: =CONCATENATE(IF(ISBLANK(sel_Treatments_Pre_Emergence),"",sel_Treatments_Pre_Emergence)) -> None
A9: Crop_Plant_Population | B9: 3 to 4 plants/row ft. | D9: 1.75 | F9: Weed_Management_Practices | G9: 90 | H9: 0 | I9: 75 | J9: =CONCATENATE(IF(ISBLANK(sel_Weed_Management_Practices),"",sel_Weed_Management_Practices)) -> PRE + EPOST + MPOST + LPOST + Hand Weed
A10: Crop_Plant_Population | B10: 5 or more plants/row ft. | D10: 2.5
A11: Crop_Row_Pattern | B11: Single (32-38 inches) | D11: 1 | F11: Total | G11: =SUM($G$2:G9) -> 1354.5 | H11: =SUM($H$2:H9) -> 661 | I11: =SUM($I$2:I9) -> 836
A12: Crop_Row_Pattern | B12: Twin (7 to 10 inches) | D12: 1.15 | F12: High Cost | G12: =Cost_Min + 0.66667*(Cost_Max-Cost_Min) -> 1123.335645
A13: Field_Irrigation | B13: Irrigated | C13: 100 | F13: Moderate Cost | G13: =Cost_Min + 0.33333*(Cost_Max-Cost_Min) -> 892.164355
A14: Field_Irrigation | B14: Non-irrigated | C14: 0
A15: Field_Irrigation | B15: Periodic Irrigation | C15: 50 | F15: Base | G15: =Cost_Base -> 565
A16: Leaf_Spot_Management | B16: Calendar spray schedule | C16: 83 | F16: Low Range | G16: =Cost_Moderate-Cost_Base -> 327.164355
A17: Leaf_Spot_Management | B17: Calendar spray schedule with skipping when dry | C17: 67 | F17: Moderate Range | G17: =Cost_High-Cost_Moderate -> 231.17129
A18: Leaf_Spot_Management | B18: Leafspot advisory throughout season | C18: 51 | F18: High Range | G18: =Cost_Max-Cost_High -> 231.164355
A19: Treatments_Fumigants | B19: Metam Sodium | C19: 30
A20: Treatments_Fumigants | B20: None | C20: 0 | F20: =CONCATENATE("Estimated Cost: $",Cost," per Acre") -> Estimated Cost: $836 per Acre
A21: Treatments_Fumigants | B21: Telone II | C21: 45
A22: Treatments_Post_Emergence | B22: Acephate | C22: 8
A23: Treatments_Post_Emergence | B23: Comite | C23: 26
A24: Treatments_Post_Emergence | B24: Danitol | C24: 26
A25: Treatments_Post_Emergence | B25: Lannate | C25: 23
A26: Treatments_Post_Emergence | B26: Lorsban (Pilot 15 G) | C26: 35
A27: Treatments_Post_Emergence | B27: None | C27: 0
A28: Treatments_Post_Emergence | B28: Non-pyrethroids | C28: 15
A29: Treatments_Post_Emergence | B29: Pyrethoids | C29: 4
A30: Treatments_Pre_Emergence | B30: Acephate | C30: 15
A31: Treatments_Pre_Emergence | B31: Admire Pro | C31: 19
A32: Treatments_Pre_Emergence | B32: AgLogic | C32: 20
A33: Treatments_Pre_Emergence | B33: Imidacloprid(Generic) | C33: 12
A34: Treatments_Pre_Emergence | B34: None | C34: 0
A35: Treatments_Pre_Emergence | B35: Phorate 20G | C35: 12
A36: Treatments_Pre_Emergence | B36: Proline | C36: 22
A37: Treatments_Pre_Emergence | B37: Propulse | C37: 20
A38: Treatments_Pre_Emergence | B38: Thimet 20G | C38: 16
A39: Treatments_Pre_Emergence | B39: Velum Total | C39: 26
A40: Weed_Management_Practices | B40: EPOST | C40: 15
A41: Weed_Management_Practices | B41: LPOST | C41: 15
A42: Weed_Management_Practices | B42: MPOST | C42: 15
A43: Weed_Management_Practices | B43: None | C43: 0
A44: Weed_Management_Practices | B44: PPI | C44: 10
A45: Weed_Management_Practices | B45: PPI + PRE | C45: 25
A46: Weed_Management_Practices | B46: PPL | C46: 10
A47: Weed_Management_Practices | B47: PRE | C47: 15
A48: Weed_Management_Practices | B48: PRE + EPOST | C48: 30
A49: Weed_Management_Practices | B49: PRE + EPOST + Hand Weed | C49: 90
A50: Weed_Management_Practices | B50: PRE + EPOST + MPOST | C50: 45
A51: Weed_Management_Practices | B51: PRE + EPOST + MPOST + Hand Weed | C51: 75
A52: Weed_Management_Practices | B52: PRE + EPOST + MPOST + LPOST | C52: 60
A53: Weed_Management_Practices | B53: PRE + EPOST + MPOST + LPOST + Hand Weed | C53: 75

Sheet Logos

Sheet Pest_Report
A1: Southern Corn Rootworm Risk Summary
A6: Crop Cultivar | C6: Risk Points
B7: Bailey*, Emery, Sullivan, Wynne | C7: 20 | D7: 20
B8: Champs | C8: 10
A9: Crop Planting Date | C9: Risk Points
B10: May 16 to Dec 31 | C10: 15 | D10: 10
B11: May 02 to May 15* | C11: 10
B12: Jan 01 to May 01 | C12: 5
A13: Field Irrigation | C13: Risk Points
B14: Irrigated* | C14: 45 | D14: 45
B15: Periodic Irrigation | C15: 20
B16: Non-irrigated | C16: 0
A17: Pest History | C17: Risk Points
B18: High | C18: 15 | D18: 0
B19: Moderate | C19: 10
B20: Low | C20: 5
B21: No history* | C21: 0
A22: Soil Drainage Class | C22: Risk Points
B23: Poorly | C23: 20 | D23: 5
B24: Somewhat Poorly | C24: 15
B25: Moderately Well | C25: 10
B26: Well* | C26: 5
A27: Soil Texture | C27: Risk Points
B28: Loam* | C28: 15 | D28: 15
B29: Sandy Loam | C29: 10
B30: Loamy Sand | C30: 5
A31: Treatments Post Emergence | C31: Risk Points
B32: Comite, Danitol, None* | C32: 0 | D32: 0
B33: Acephate, Lannate, Non-pyrethroids, Pyrethoids | C33: -10
B34: Lorsban (Pilot 15 G) | C34: -30
A36: * Selected options used in calculating pest risk. Note: Reduction in pest risk value by a pesticide application will be less under low risk conditions.

Sheet CBR
A1: Cylindrocladium Black Rot
A2: Category | B2: Risk Level | C2: Risk Level Description | D2: Points | H2: Category | I2: Max | J2: Min | K2: Risk | L2: Selection
A3: Crop_Cultivar | B3: 1 | C3: Champs | D3: 30 | H3: Crop_Cultivar | I3: 30 | J3: 20 | K3: =getRiskValue("A:A",H3,J3,L3,"Single") -> 20 | L3: =IF(ISBLANK(sel_Crop_Cultivar),"",sel_Crop_Cultivar) -> Bailey
A4: Crop_Cultivar | B4: 2 | C4: Bailey, Emery, Sullivan, Wynne | D4: 20 | H4: Pest_History | I4: 25 | J4: 5 | K4: =getRiskValue("A:A",H4,J4,L4,"Single") -> 5 | L4: =IF(ISBLANK(sel_Pest_History_CBR),"",sel_Pest_History_CBR) -> No history
A5: Crop_Planting_Date | B5: 1 | C5: Jan 01 to May 05 | D5: 15 | H5: Field_Crop_History_1_Year_Ago | I5: 24 | J5: 2 | K5: =getRiskValue("A:A",H5,J5,L5,"Single") -> 2 | L5: =IF(ISBLANK(sel_Field_Crop_History_1_Year_Ago),"",sel_Field_Crop_History_1_Year_Ago) -> Cotton
A6: Crop_Planting_Date | B6: 2 | C6: May 21 to Dec 31 | D6: 10 | H6: Field_Crop_History_2_Years_Ago | I6: 16 | J6: 2 | K6: =getRiskValue("A:A",H6,J6,L6,"Single") -> 2 | L6: =IF(ISBLANK(sel_Field_Crop_History_2_Years_Ago),"",sel_Field_Crop_History_2_Years_Ago) -> Sorghum
A7: Crop_Planting_Date | B7: 3 | C7: May 06 to May 20 | D7: 5 | H7: Crop_Planting_Date | I7: 15 | J7: 5 | K7: =getRiskValue("A:A",H7,J7,L7,"Date") -> 15 | L7: =IF(ISBLANK(sel_Crop_Planting_Date),"",sel_Crop_Planting_Date) -> 2020-05-05
A8: Field_Crop_History_1_Year_Ago | B8: 1 | C8: Peanut, Soybean, Tobacco | D8: 24 | H8: Field_Irrigation | I8: 10 | J8: 0 | K8: =getRiskValue("A:A",H8,J8,L8,"Single") -> 10 | L8: =IF(ISBLANK(sel_Field_Irrigation),"",sel_Field_Irrigation) -> Irrigated
A9: Field_Crop_History_1_Year_Ago | B9: 2 | C9: Clary Sage, Cotton, Fallow, Field Corn, Forage Grasses, Melons, Other, Small Grains, Sorghum, Sweet Corn, Sweetpotato, Vegetables | D9: 2 | H9: Soil_Drainage_Class | I9: 10 | J9: 0 | K9: =getRiskValue("A:A",H9,J9,L9,"Single") -> 0 | L9: =IF(ISBLANK(sel_Soil_Drainage_Class),"",sel_Soil_Drainage_Class) -> Well
A10: Field_Crop_History_2_Years_Ago | B10: 1 | C10: Peanut, Soybean, Tobacco | D10: 16 | H10: Soil_pH | I10: 10 | J10: 5 | K10: =getRiskValue("A:A",H10,J10,L10,"pH") -> 5 | L10: =IF(ISBLANK(sel_Soil_pH),"",sel_Soil_pH) -> 6
A11: Field_Crop_History_2_Years_Ago | B11: 2 | C11: Clary Sage, Cotton, Fallow, Field Corn, Forage Grasses, Melons, Other, Small Grains, Sorghum, Sweet Corn, Sweetpotato, Vegetables | D11: 2 | H11: Field_Crop_History_3_Years_Ago | I11: 8 | J11: 2 | K11: =getRiskValue("A:A",H11,J11,L11,"Single") -> 2 | L11: =IF(ISBLANK(sel_Field_Crop_History_3_Years_Ago),"",sel_Field_Crop_History_3_Years_Ago) -> Sorghum
A12: Field_Crop_History_3_Years_Ago | B12: 1 | C12: Peanut, Soybean, Tobacco | D12: 8 | H12: Field_Tillage | I12: 5 | J12: 0 | K12: =getRiskValue("A:A",H12,J12,L12,"Single") -> 0 | L12: =IF(ISBLANK(sel_Field_Tillage),"",sel_Field_Tillage) -> Conventional
A13: Field_Crop_History_3_Years_Ago | B13: 2 | C13: Clary Sage, Cotton, Fallow, Field Corn, Forage Grasses, Melons, Other, Small Grains, Sorghum, Sweet Corn, Sweetpotato, Vegetables | D13: 2 | H13: Field_Crop_History_4_Years_Ago | I13: 4 | J13: 2 | K13: =getRiskValue("A:A",H13,J13,L13,"Single") -> 4 | L13: =IF(ISBLANK(sel_Field_Crop_History_4_Years_Ago),"",sel_Field_Crop_History_4_Years_Ago) -> Soybean
A14: Field_Crop_History_4_Years_Ago | B14: 1 | C14: Peanut, Soybean, Tobacco | D14: 4 | H14: Treatments_Fumigants | I14: 0 | J14: -50 | K14: =getRiskValue("A:A",H14,J14,L14,"Single") -> 0 | L14: =IF(ISBLANK(sel_Treatments_Fumigants),"",sel_Treatments_Fumigants) -> None
A15: Field_Crop_History_4_Years_Ago | B15: 2 | C15: Clary Sage, Cotton, Fallow, Field Corn, Forage Grasses, Melons, Other, Small Grains, Sorghum, Sweet Corn, Sweetpotato, Vegetables | D15: 2 | H15: Treatments_Pre_Emergence | I15: 0 | J15: -10 | K15: =getRiskValue("A:A",H15,J15,L15,"Multi") -> 0 | L15: =IF(ISBLANK(sel_Treatments_Pre_Emergence),"",sel_Treatments_Pre_Emergence) -> None
A16: Field_Irrigation | B16: 1 | C16: Irrigated | D16: 10
A17: Field_Irrigation | B17: 2 | C17: Periodic Irrigation | D17: 5 | H17: Total | I17: =SUMIF(I3:I15,">0") -> 157 | J17: =SUMIF(J3:J15,">0") -> 43 | K17: =MAX(CBR_MinRiskIndex,SUM(K3:K15)) -> 65
A18: Field_Irrigation | B18: 3 | C18: Non-irrigated | D18: 0
A19: Field_Tillage | B19: 1 | C19: Strip into Residue | D19: 5 | H19: High Risk Index | I19: 110
A20: Field_Tillage | B20: 2 | C20: Conventional | D20: 0 | H20: Moderate Risk Index | I20: 80
A21: Pest_History | B21: 1 | C21: High (incidence > 10%) | D21: 25
A22: Pest_History | B22: 2 | C22: Moderate (incidence 5-10%) | D22: 15
A23: Pest_History | B23: 3 | C23: Low (incidence < 5%) | D23: 10
A24: Pest_History | B24: 4 | C24: No history | D24: 5
A25: Soil_Drainage_Class | B25: 1 | C25: Poorly, Somewhat Poorly | D25: 10
A26: Soil_Drainage_Class | B26: 2 | C26: Moderately Well | D26: 5
A27: Soil_Drainage_Class | B27: 3 | C27: Well | D27: 0
A28: Soil_pH | B28: 1 | C28: 5.7 or lower | D28: 10
A29: Soil_pH | B29: 2 | C29: 5.8 or higher | D29: 5
A30: Treatments_Fumigants | B30: 1 | C30: None, Telone II | D30: 0
A31: Treatments_Fumigants | B31: 2 | C31: Metam Sodium | D31: -50
A32: Treatments_Pre_Emergence | B32: 1 | C32: Acephate, Admire Pro, AgLogic, Imidacloprid(Generic), None, Phorate 20G, Thimet 20G | D32: 0
A33: Treatments_Pre_Emergence | B33: 2 | C33: Velum Total | D33: -5
A34: Treatments_Pre_Emergence | B34: 3 | C34: Proline, Propulse | D34: -10

Sheet LS
A1: Early/Late Leaf Spot
A2: Category | B2: Risk Level | C2: Description | D2: Points | H2: Category | I2: Max | J2: Min | K2: Risk | L2: Selection
A3: Crop_Cultivar | B3: 1 | C3: Champs | D3: 30 | H3: Crop_Cultivar | I3: 30 | J3: 10 | K3: =getRiskValue("A:A",H3,J3,L3,"Single") -> 10 | L3: =IF(ISBLANK(sel_Crop_Cultivar),"",sel_Crop_Cultivar) -> Bailey
A4: Crop_Cultivar | B4: 2 | C4: Bailey, Emery, Sullivan, Wynne | D4: 10 | H4: Field_Crop_History_1_Year_Ago | I4: 30 | J4: 3 | K4: =getRiskValue("A:A",H4,J4,L4,"Single") -> 3 | L4: =IF(ISBLANK(sel_Field_Crop_History_1_Year_Ago),"",sel_Field_Crop_History_1_Year_Ago) -> Cotton
A5: Crop_Planting_Date | B5: 1 | C5: May 21 to Dec 31 | D5: 10 | H5: Pest_History | I5: 20 | J5: 5 | K5: =getRiskValue("A:A",H5,J5,L5,"Single") -> 10 | L5: =IF(ISBLANK(sel_Pest_History_LS),"",sel_Pest_History_LS) -> Present but not a problem with a good fungicide program
A6: Crop_Planting_Date | B6: 2 | C6: Jan 01 to May 20 | D6: 5 | H6: Field_Crop_History_2_Years_Ago | I6: 15 | J6: 2 | K6: =getRiskValue("A:A",H6,J6,L6,"Single") -> 2 | L6: =IF(ISBLANK(sel_Field_Crop_History_2_Years_Ago),"",sel_Field_Crop_History_2_Years_Ago) -> Sorghum
A7: Field_Crop_History_1_Year_Ago | B7: 1 | C7: Peanut | D7: 30 | H7: Field_Irrigation | I7: 15 | J7: 5 | K7: =getRiskValue("A:A",H7,J7,L7,"Single") -> 15 | L7: =IF(ISBLANK(sel_Field_Irrigation),"",sel_Field_Irrigation) -> Irrigated
A8: Field_Crop_History_1_Year_Ago | B8: 2 | C8: Clary Sage, Cotton, Fallow, Field Corn, Forage Grasses, Melons, Other, Small Grains, Sorghum, Soybean, Sweet Corn, Sweetpotato, Tobacco, Vegetables | D8: 3 | H8: Crop_Planting_Date | I8: 10 | J8: 5 | K8: =getRiskValue("A:A",H8,J8,L8,"Date") -> 5 | L8: =IF(ISBLANK(sel_Crop_Planting_Date),"",sel_Crop_Planting_Date) -> 2020-05-05
A9: Field_Crop_History_2_Years_Ago | B9: 1 | C9: Peanut | D9: 15 | H9: Field_Tillage | I9: 10 | J9: 5 | K9: =getRiskValue("A:A",H9,J9,L9,"Single") -> 10 | L9: =IF(ISBLANK(sel_Field_Tillage),"",sel_Field_Tillage) -> Conventional
A10: Field_Crop_History_2_Years_Ago | B10: 2 | C10: Clary Sage, Cotton, Fallow, Field Corn, Forage Grasses, Melons, Other, Small Grains, Sorghum, Soybean, Sweet Corn, Sweetpotato, Tobacco, Vegetables | D10: 2 | H10: Field_Crop_History_3_Years_Ago | I10: 5 | J10: 2 | K10: =getRiskValue("A:A",H10,J10,L10,"Single") -> 2 | L10: =IF(ISBLANK(sel_Field_Crop_History_3_Years_Ago),"",sel_Field_Crop_History_3_Years_Ago) -> Sorghum
A11: Field_Crop_History_3_Years_Ago | B11: 1 | C11: Peanut | D11: 5 | H11: Field_Crop_History_4_Years_Ago | I11: 3 | J11: 1 | K11: =getRiskValue("A:A",H11,J11,L11,"Single") -> 1 | L11: =IF(ISBLANK(sel_Field_Crop_History_4_Years_Ago),"",sel_Field_Crop_History_4_Years_Ago) -> Soybean
A12: Field_Crop_History_3_Years_Ago | B12: 2 | C12: Clary Sage, Cotton, Fallow, Field Corn, Forage Grasses, Melons, Other, Small Grains, Sorghum, Soybean, Sweet Corn, Sweetpotato, Tobacco, Vegetables | D12: 2
A13: Field_Crop_History_4_Years_Ago | B13: 1 | C13: Peanut | D13: 3 | H13: Total | I13: =SUMIF(I3:I11,">0") -> 138 | J13: =SUMIF(J3:J11,">0") -> 38 | K13: =MAX(LS_MinRiskIndex,SUM(K3:K11)) -> 58
A14: Field_Crop_History_4_Years_Ago | B14: 2 | C14: Clary Sage, Cotton, Fallow, Field Corn, Forage Grasses, Melons, Other, Small Grains, Sorghum, Soybean, Sweet Corn, Sweetpotato, Tobacco, Vegetables | D14: 1
A15: Field_Irrigation | B15: 1 | C15: Irrigated | D15: 15 | H15: High Risk Index | I15: 80
A16: Field_Irrigation | B16: 2 | C16: Periodic Irrigation | D16: 10 | H16: Moderate Risk Index | I16: 55
A17: Field_Irrigation | B17: 3 | C17: Non-irrigated | D17: 5
A18: Field_Tillage | B18: 1 | C18: Conventional | D18: 10
A19: Field_Tillage | B19: 2 | C19: Strip into Residue | D19: 5
A20: Pest_History | B20: 1 | C20: A problem even with good fungicide program | D20: 20
A21: Pest_History | B21: 2 | C21: Present but not a problem with a good fungicide program | D21: 10
A22: Pest_History | B22: 3 | C22: No history | D22: 5

Sheet SCL
A1: Sclerotinia
A2: Category | B2: Risk Level | C2: Description | D2: Points | H2: Category | I2: Max | J2: Min | K2: Risk | L2: Selection
A3: Crop_Cultivar | B3: 1 | C3: Champs | D3: 85 | H3: Pest_History | I3: 145 | J3: 0 | K3: =getRiskValue("A:A",H3,J3,L3,"Single") -> 0 | L3: =IF(ISBLANK(sel_Pest_History_SCL),"",sel_Pest_History_SCL) -> No History
A4: Crop_Cultivar | B4: 2 | C4: Wynne | D4: 70 | H4: Crop_Cultivar | I4: 85 | J4: 55 | K4: 55 | L4: =IF(ISBLANK(sel_Crop_Cultivar),"",sel_Crop_Cultivar) -> Bailey
A5: Crop_Cultivar | B5: 3 | C5: Bailey, Sullivan | D5: 55 | H5: Field_Crop_History_1_Year_Ago | I5: 24 | J5: 16 | K5: 16 | L5: =IF(ISBLANK(sel_Field_Crop_History_1_Year_Ago),"",sel_Field_Crop_History_1_Year_Ago) -> Cotton
A6: Crop_Plant_Population | B6: 1 | C6: 5 or more plants/row ft. | D6: 10 | H6: Leaf_Spot_Chorothalonil_Applications | I6: 20 | J6: 0 | K6: 20 | L6: =IF(ISBLANK(sel_Leaf_Spot_Chorothalonil_Applications),"",sel_Leaf_Spot_Chorothalonil_Applications) -> 3 or more
A7: Crop_Plant_Population | B7: 2 | C7: 3 to 4 plants/row ft. | D7: 5 | H7: Field_Crop_History_2_Years_Ago | I7: 16 | J7: 8 | K7: 8 | L7: =IF(ISBLANK(sel_Field_Crop_History_2_Years_Ago),"",sel_Field_Crop_History_2_Years_Ago) -> Sorghum
A8: Crop_Plant_Population | B8: 3 | C8: 1 to 2 plants/row ft. | D8: 0 | H8: Crop_Plant_Population | I8: 10 | J8: 0 | K8: 0 | L8: =IF(ISBLANK(sel_Crop_Plant_Population),"",sel_Crop_Plant_Population) -> 1 to 2 plants/row ft.
A9: Crop_Planting_Date | B9: 1 | C9: May 21 to Dec 31 | D9: 10 | H9: Crop_Planting_Date | I9: 10 | J9: 5 | K9: =getRiskValue("A:A",H9,J9,L9,"Date") -> 5 | L9: =IF(ISBLANK(sel_Crop_Planting_Date),"",sel_Crop_Planting_Date) -> 2020-05-05
A10: Crop_Planting_Date | B10: 2 | C10: Jan 01 to May 20 | D10: 5 | H10: Field_Irrigation | I10: 10 | J10: 5 | K10: =getRiskValue("A:A",H10,J10,L10,"Single") -> 10 | L10: =IF(ISBLANK(sel_Field_Irrigation),"",sel_Field_Irrigation) -> Irrigated
A11: Crop_Row_Pattern | B11: 1 | C11: Twin (7 to 10 inches) | D11: 5 | H11: Leaf_Spot_Management | I11: 10 | J11: 5 | K11: =getRiskValue("A:A",H11,J11,L11,"Single") -> 5 | L11: =IF(ISBLANK(sel_Leaf_Spot_Management),"",sel_Leaf_Spot_Management) -> Leafspot advisory throughout season
A12: Crop_Row_Pattern | B12: 2 | C12: Single (32-38 inches) | D12: 0 | H12: Soil_pH | I12: 10 | J12: 0 | K12: =getRiskValue("A:A",H12,J12,L12,"pH") -> 5 | L12: =IF(ISBLANK(sel_Soil_pH),"",sel_Soil_pH) -> 6
A13: Field_Crop_History_1_Year_Ago | B13: 1 | C13: Clary Sage, Melons, Peanut, Soybean, Vegetables | D13: 24 | H13: Field_Crop_History_3_Years_Ago | I13: 8 | J13: 2 | K13: =getRiskValue("A:A",H13,J13,L13,"Single") -> 2 | L13: =IF(ISBLANK(sel_Field_Crop_History_3_Years_Ago),"",sel_Field_Crop_History_3_Years_Ago) -> Sorghum
A14: Field_Crop_History_1_Year_Ago | B14: 2 | C14: Tobacco | D14: 20 | H14: Crop_Row_Pattern | I14: 5 | J14: 0 | K14: =getRiskValue("A:A",H14,J14,L14,"Single") -> 0 | L14: =IF(ISBLANK(sel_Crop_Row_Pattern),"",sel_Crop_Row_Pattern) -> Single (32-38 inches)
A15: Field_Crop_History_1_Year_Ago | B15: 3 | C15: Cotton, Fallow, Field Corn, Other, Small Grains, Sorghum, Sweet Corn | D15: 16 | H15: Field_Crop_History_4_Years_Ago | I15: 4 | J15: 2 | K15: =getRiskValue("A:A",H15,J15,L15,"Single") -> 4 | L15: =IF(ISBLANK(sel_Field_Crop_History_4_Years_Ago),"",sel_Field_Crop_History_4_Years_Ago) -> Soybean
A16: Field_Crop_History_2_Years_Ago | B16: 1 | C16: Clary Sage, Melons, Peanut, Soybean, Vegetables | D16: 16
A17: Field_Crop_History_2_Years_Ago | B17: 2 | C17: Tobacco | D17: 12 | H17: Total | I17: =SUMIF(I3:I15,">0") -> 357 | J17: =SUMIF(J3:J15,">0") -> 98 | K17: =MAX(SCL_MinRiskIndex,SUM(K3:K15)) -> 130
A18: Field_Crop_History_2_Years_Ago | B18: 3 | C18: Cotton, Fallow, Field Corn, Other, Small Grains, Sorghum, Sweet Corn | D18: 8
A19: Field_Crop_History_3_Years_Ago | B19: 1 | C19: Clary Sage, Melons, Peanut, Soybean, Vegetables | D19: 8 | H19: High Risk Index | I19: 245
A20: Field_Crop_History_3_Years_Ago | B20: 2 | C20: Tobacco | D20: 4 | H20: Moderate Risk Index | I20: 215
A21: Field_Crop_History_3_Years_Ago | B21: 3 | C21: Cotton, Fallow, Field Corn, Other, Small Grains, Sorghum, Sweet Corn | D21: 2
A22: Field_Crop_History_4_Years_Ago | B22: 1 | C22: Clary Sage, Melons, Peanut, Soybean, Vegetables | D22: 4
A23: Field_Crop_History_4_Years_Ago | B23: 2 | C23: Cotton, Fallow, Field Corn, Other, Small Grains, Sorghum, Sweet Corn, Tobacco | D23: 2
A24: Field_Irrigation | B24: 1 | C24: Irrigated | D24: 10
A25: Field_Irrigation | B25: 2 | C25: Periodic Irrigation | D25: 8
A26: Field_Irrigation | B26: 3 | C26: Non-irrigated | D26: 5
A27: Leaf_Spot_Chorothalonil_Applications | B27: 1 | C27: 3 or more | D27: 20
A28: Leaf_Spot_Chorothalonil_Applications | B28: 2 | C28: Less than 3 | D28: 0
A29: Leaf_Spot_Management | B29: 1 | C29: Calendar spray schedule, Calendar spray schedule with skipping when dry | D29: 10
A30: Leaf_Spot_Management | B30: 2 | C30: Leafspot advisory throughout season | D30: 5
A31: Pest_History | B31: 1 | C31: Present and requires 2 or more sprays per year | D31: 145
A32: Pest_History | B32: 2 | C32: Present and requires 1 spray per year | D32: 120
A33: Pest_History | B33: 3 | C33: Present and requires 0 sprays per year | D33: 95
A34: Pest_History | B34: 4 | C34: No History | D34: 0
A35: Soil_pH | B35: 1 | C35: 6.6 or higher | D35: 10
A36: Soil_pH | B36: 2 | C36: 5.8 to 6.5 | D36: 5
A37: Soil_pH | B37: 3 | C37: 5.7 or lower | D37: 0

Sheet TSWV
A1: Tomato Spotted Wilt Virus
A2: Category | B2: Risk Level | C2: Risk Level Description | D2: Points | H2: Category | I2: Max | J2: Min | K2: Risk | L2: Selection
A3: Crop_Cultivar | B3: 1 | C3: Champs | D3: 30 | H3: Crop_Cultivar | I3: 30 | J3: 20 | K3: =getRiskValue("A:A",H3,J3,L3,"Single") -> 20 | L3: =IF(ISBLANK(sel_Crop_Cultivar),"",sel_Crop_Cultivar) -> Bailey
A4: Crop_Cultivar | B4: 2 | C4: Bailey, Emery, Sullivan, Wynne | D4: 20 | H4: Crop_Plant_Population | I4: 25 | J4: 5 | K4: =getRiskValue("A:A",H4,J4,L4,"Single") -> 25 | L4: =IF(ISBLANK(sel_Crop_Plant_Population),"",sel_Crop_Plant_Population) -> 1 to 2 plants/row ft.
A5: Crop_Plant_Population | B5: 1 | C5: 1 to 2 plants/row ft. | D5: 25 | H5: Treatments_Pre_Emergence | I5: 25 | J5: 5 | K5: =getRiskValue("A:A",H5,J5,L5,"Multi") -> 25 | L5: =IF(ISBLANK(sel_Treatments_Pre_Emergence),"",sel_Treatments_Pre_Emergence) -> None
A6: Crop_Plant_Population | B6: 2 | C6: 3 to 4 plants/row ft. | D6: 15 | H6: Crop_Planting_Date | I6: 20 | J6: 10 | K6: =getRiskValue("A:A",H6,J6,L6,"Date") -> 20 | L6: =IF(ISBLANK(sel_Crop_Planting_Date),"",sel_Crop_Planting_Date) -> 2020-05-05
A7: Crop_Plant_Population | B7: 3 | C7: 5 or more plants/row ft. | D7: 5 | H7: Field_Tillage | I7: 10 | J7: 5 | K7: =getRiskValue("A:A",H7,J7,L7,"Single") -> 10 | L7: =IF(ISBLANK(sel_Field_Tillage),"",sel_Field_Tillage) -> Conventional
A8: Crop_Planting_Date | B8: 1 | C8: Jan 01 to May 05 | D8: 20 | H8: Treatments_Post_Emergence | I8: 0 | J8: -5 | K8: =getRiskValue("A:A",H8,J8,L8,"Multi") -> 0 | L8: =IF(ISBLANK(sel_Treatments_Post_Emergence),"",sel_Treatments_Post_Emergence) -> None
A9: Crop_Planting_Date | B9: 2 | C9: May 16 to Dec 31 | D9: 15
A10: Crop_Planting_Date | B10: 3 | C10: May 06 to May 15 | D10: 10 | H10: Total | I10: =SUMIF(I3:I8,">0") -> 110 | J10: =SUMIF(J3:J8,">0") -> 45 | K10: =MAX(TSWV_MinRiskIndex,SUM(K3:K8)) -> 100
A11: Field_Tillage | B11: 1 | C11: Conventional | D11: 10
A12: Field_Tillage | B12: 2 | C12: Strip into Residue | D12: 5 | H12: High Risk Index | I12: 90
A13: Treatments_Post_Emergence | B13: 1 | C13: Comite, Danitol, Lannate, Lorsban (Pilot 15 G), None, Non-pyrethroids, Pyrethoids | D13: 0 | H13: Moderate Risk Index | I13: 65
A14: Treatments_Post_Emergence | B14: 2 | C14: Acephate | D14: -5
A15: Treatments_Pre_Emergence | B15: 1 | C15: None, Proline, Propulse | D15: 25
A16: Treatments_Pre_Emergence | B16: 2 | C16: Acephate, Admire Pro, AgLogic, Imidacloprid(Generic), Velum Total | D16: 10
A17: Treatments_Pre_Emergence | B17: 3 | C17: Phorate 20G, Thimet 20G | D17: 5

Sheet SM
A1: Spider Mites
A2: Category | B2: Risk Level | C2: Risk Level Description | D2: Points | H2: Category | I2: Max | J2: Min | K2: Risk | L2: Selection
A3: Field_Borders_Early_Season | B3: 1 | C3: Weeds/Brush | D3: 15 | H3: Treatments_Post_Emergence | I3: 40 | J3: 5 | K3: =getRiskValue("A:A",H3,J3,L3,"Multi") -> 5 | L3: =IF(ISBLANK(sel_Treatments_Post_Emergence),"",sel_Treatments_Post_Emergence) -> None
A4: Field_Borders_Early_Season | B4: 2 | C4: Clean | D4: 5 | H4: Leaf_Spot_Management | I4: 30 | J4: 10 | K4: =getRiskValue("A:A",H4,J4,L4,"Single") -> 10 | L4: =IF(ISBLANK(sel_Leaf_Spot_Management),"",sel_Leaf_Spot_Management) -> Leafspot advisory throughout season
A5: Field_Borders_Late_Season | B5: 1 | C5: Mowed | D5: 20 | H5: Field_Borders_Late_Season | I5: 20 | J5: 5 | K5: 20 | L5: =IF(ISBLANK(sel_Field_Borders_Late_Season),"",sel_Field_Borders_Late_Season) -> Mowed
A6: Field_Borders_Late_Season | B6: 2 | C6: Not Mowed | D6: 5 | H6: Field_Irrigation | I6: 20 | J6: 5 | K6: 5 | L6: =IF(ISBLANK(sel_Field_Irrigation),"",sel_Field_Irrigation) -> Irrigated
A7: Field_Irrigation | B7: 1 | C7: Non-irrigated | D7: 20 | H7: Pest_Hosts | I7: 20 | J7: 5 | K7: 15 | L7: =IF(ISBLANK(sel_Pest_Hosts),"",sel_Pest_Hosts) -> Field Corn
A8: Field_Irrigation | B8: 2 | C8: Periodic Irrigation | D8: 13 | H8: Field_Borders_Early_Season | I8: 15 | J8: 5 | K8: 5 | L8: =IF(ISBLANK(sel_Field_Borders_Early_Season),"",sel_Field_Borders_Early_Season) -> Clean
A9: Field_Irrigation | B9: 3 | C9: Irrigated | D9: 5 | H9: Leaf_Spot_Chorothalonil_Applications | I9: 10 | J9: 5 | K9: 10 | L9: =IF(ISBLANK(sel_Leaf_Spot_Chorothalonil_Applications),"",sel_Leaf_Spot_Chorothalonil_Applications) -> 3 or more
A10: Leaf_Spot_Chorothalonil_Applications | B10: 1 | C10: 3 or more | D10: 10
A11: Leaf_Spot_Chorothalonil_Applications | B11: 2 | C11: Less than 3 | D11: 5 | H11: Total | I11: =SUMIF(I3:I9,">0") -> 155 | J11: =SUMIF(J3:J9,">0") -> 40 | K11: =MAX(SM_MinRiskIndex,SUM(K3:K9)) -> 70
A12: Leaf_Spot_Management | B12: 1 | C12: Calendar spray schedule | D12: 30
A13: Leaf_Spot_Management | B13: 2 | C13: Calendar spray schedule with skipping when dry | D13: 20 | H13: High Risk Index | I13: 110
A14: Leaf_Spot_Management | B14: 3 | C14: Leafspot advisory throughout season | D14: 10 | H14: Moderate Risk Index | I14: 80
A15: Pest_Hosts | B15: 1 | C15: Sweet Corn | D15: 20
A16: Pest_Hosts | B16: 2 | C16: Field Corn | D16: 15
A17: Pest_Hosts | B17: 3 | C17: Clary Sage, Cotton, Melons, Small Grains, Sorghum, Soybean, Tobacco, Vegetables | D17: 10
A18: Pest_Hosts | B18: 4 | C18: Fallow, Forage Grasses, Other, Sweetpotato | D18: 5
A19: Treatments_Post_Emergence | B19: 1 | C19: Lorsban (Pilot 15 G) | D19: 40
A20: Treatments_Post_Emergence | B20: 2 | C20: Lannate | D20: 20
A21: Treatments_Post_Emergence | B21: 3 | C21: Acephate, Pyrethoids | D21: 15
A22: Treatments_Post_Emergence | B22: 4 | C22: Danitol, Non-pyrethroids | D22: 10
A23: Treatments_Post_Emergence | B23: 5 | C23: Comite, None | D23: 5

Sheet SCR
A1: Southern Corn Rootworm
A2: Category | B2: Risk Level | C2: Risk Level Description | D2: Points | H2: Category | I2: Max | J2: Min | K2: Risk | L2: Selection
A3: Crop_Cultivar | B3: 1 | C3: Bailey, Emery, Sullivan, Wynne | D3: 20 | H3: Field_Irrigation | I3: 45 | J3: 0 | K3: =getRiskValue("A:A",H3,J3,L3,"Single") -> 45 | L3: =IF(ISBLANK(sel_Field_Irrigation),"",sel_Field_Irrigation) -> Irrigated
A4: Crop_Cultivar | B4: 2 | C4: Champs | D4: 10 | H4: Crop_Cultivar | I4: 20 | J4: 10 | K4: =getRiskValue("A:A",H4,J4,L4,"Single") -> 20 | L4: =IF(ISBLANK(sel_Crop_Cultivar),"",sel_Crop_Cultivar) -> Bailey
A5: Crop_Planting_Date | B5: 1 | C5: May 16 to Dec 31 | D5: 15 | H5: Soil_Drainage_Class | I5: 20 | J5: 5 | K5: =getRiskValue("A:A",H5,J5,L5,"Single") -> 5 | L5: =IF(ISBLANK(sel_Soil_Drainage_Class),"",sel_Soil_Drainage_Class) -> Well
A6: Crop_Planting_Date | B6: 2 | C6: May 02 to May 15 | D6: 10 | H6: Crop_Planting_Date | I6: 15 | J6: 5 | K6: =getRiskValue("A:A",H6,J6,L6,"Date") -> 10 | L6: =IF(ISBLANK(sel_Crop_Planting_Date),"",sel_Crop_Planting_Date) -> 2020-05-05
A7: Crop_Planting_Date | B7: 3 | C7: Jan 01 to May 01 | D7: 5 | H7: Pest_History | I7: 15 | J7: 0 | K7: =getRiskValue("A:A",H7,J7,L7,"Single") -> 0 | L7: =IF(ISBLANK(sel_Pest_History_SCR),"",sel_Pest_History_SCR) -> No history
A8: Field_Irrigation | B8: 1 | C8: Irrigated | D8: 45 | H8: Soil_Texture | I8: 15 | J8: 5 | K8: =getRiskValue("A:A",H8,J8,L8,"Single") -> 15 | L8: =IF(ISBLANK(sel_Soil_Texture),"",sel_Soil_Texture) -> Loam
A9: Field_Irrigation | B9: 2 | C9: Periodic Irrigation | D9: 20 | H9: Treatments_Post_Emergence | I9: 0 | J9: -30 | K9: =getRiskValue("A:A",H9,J9,L9,"Multi") -> 0 | L9: =IF(ISBLANK(sel_Treatments_Post_Emergence),"",sel_Treatments_Post_Emergence) -> None
A10: Field_Irrigation | B10: 3 | C10: Non-irrigated | D10: 0
A11: Pest_History | B11: 1 | C11: High | D11: 15 | H11: Total | I11: =SUMIF(I3:I9,">0") -> 130 | J11: =SUMIF(J3:J9,">0") -> 25 | K11: =MAX(SCR_MinRiskIndex,SUM(K3:K9)) -> 95
A12: Pest_History | B12: 2 | C12: Moderate | D12: 10
A13: Pest_History | B13: 3 | C13: Low | D13: 5 | H13: High Risk Index | I13: 70
A14: Pest_History | B14: 4 | C14: No history | D14: 0 | H14: Moderate Risk Index | I14: 55
A15: Soil_Drainage_Class | B15: 1 | C15: Poorly | D15: 20
A16: Soil_Drainage_Class | B16: 2 | C16: Somewhat Poorly | D16: 15
A17: Soil_Drainage_Class | B17: 3 | C17: Moderately Well | D17: 10
A18: Soil_Drainage_Class | B18: 4 | C18: Well | D18: 5
A19: Soil_Texture | B19: 1 | C19: Loam | D19: 15
A20: Soil_Texture | B20: 2 | C20: Sandy Loam | D20: 10
A21: Soil_Texture | B21: 3 | C21: Loamy Sand | D21: 5
A22: Treatments_Post_Emergence | B22: 1 | C22: Comite, Danitol, None | D22: 0
A23: Treatments_Post_Emergence | B23: 2 | C23: Acephate, Lannate, Non-pyrethroids, Pyrethoids | D23: -10
A24: Treatments_Post_Emergence | B24: 3 | C24: Lorsban (Pilot 15 G) | D24: -30

Sheet NRN
A1: Northern Rootknot Nematode
A2: Category | B2: Risk Level | C2: Risk Level Description | D2: Points | H2: Category | I2: Max | J2: Min | K2: Risk | L2: Selection
A3: Field_Crop_History_1_Year_Ago | B3: 1 | C3: Clary Sage, Melons, Peanut, Soybean, Tobacco, Vegetables | D3: 15 | H3: Pest_History_Nematodes | I3: 40 | J3: 0 | K3: =getRiskValue("A:A",H3,J3,L3,"Single") -> 0 | L3: =IF(ISBLANK(sel_Pest_History_Nematodes_NRN),"",sel_Pest_History_Nematodes_NRN) -> Very Low (NCDA index < 20)
A4: Field_Crop_History_1_Year_Ago | B4: 2 | C4: Cotton, Fallow, Field Corn, Other, Small Grains, Sorghum, Sweet Corn | D4: 2 | H4: Field_Crop_History_1_Year_Ago | I4: 15 | J4: 2 | K4: 2 | L4: =IF(ISBLANK(sel_Field_Crop_History_1_Year_Ago),"",sel_Field_Crop_History_1_Year_Ago) -> Cotton
A5: Field_Crop_History_2_Years_Ago | B5: 1 | C5: Clary Sage, Melons, Peanut, Soybean, Tobacco, Vegetables | D5: 10 | H5: Field_Tillage | I5: 15 | J5: 5 | K5: 15 | L5: =IF(ISBLANK(sel_Field_Tillage),"",sel_Field_Tillage) -> Conventional
A6: Field_Crop_History_2_Years_Ago | B6: 2 | C6: Cotton, Fallow, Field Corn, Other, Small Grains, Sorghum, Sweet Corn | D6: 3 | H6: Soil_Texture | I6: 15 | J6: 5 | K6: 5 | L6: =IF(ISBLANK(sel_Soil_Texture),"",sel_Soil_Texture) -> Loam
A7: Field_Tillage | B7: 1 | C7: Conventional | D7: 15 | H7: Field_Crop_History_2_Years_Ago | I7: 10 | J7: 3 | K7: 3 | L7: =IF(ISBLANK(sel_Field_Crop_History_2_Years_Ago),"",sel_Field_Crop_History_2_Years_Ago) -> Sorghum
A8: Field_Tillage | B8: 2 | C8: Strip into Residue | D8: 5 | H8: Treatments_Fumigants | I8: 0 | J8: -40 | K8: 0 | L8: =IF(ISBLANK(sel_Treatments_Fumigants),"",sel_Treatments_Fumigants) -> None
A9: Pest_History_Nematodes | B9: 1 | C9: High (NCDA index ≥ 60) | D9: 40 | H9: Treatments_Pre_Emergence | I9: 0 | J9: -10 | K9: =getRiskValue("A:A",H9,J9,L9,"Multi") -> 0 | L9: =IF(ISBLANK(sel_Treatments_Pre_Emergence),"",sel_Treatments_Pre_Emergence) -> None
A10: Pest_History_Nematodes | B10: 2 | C10: Moderate (40 ≤ NCDA index < 60) | D10: 30
A11: Pest_History_Nematodes | B11: 3 | C11: Low (20 ≤ NCDA index < 40) | D11: 20 | H11: Total | I11: =SUMIF(I3:I9,">0") -> 95 | J11: =SUMIF(J3:J9,">0") -> 15 | K11: =MAX(NRN_MinRiskIndex,SUM(K3:K9)) -> 25
A12: Pest_History_Nematodes | B12: 4 | C12: Very Low (NCDA index < 20) | D12: 0
A13: Soil_Texture | B13: 1 | C13: Loamy Sand | D13: 15 | H13: High Risk Index | I13: 65
A14: Soil_Texture | B14: 2 | C14: Sandy Loam | D14: 10 | H14: Moderate Risk Index | I14: 40
A15: Soil_Texture | B15: 3 | C15: Loam | D15: 5
A16: Treatments_Fumigants | B16: 1 | C16: None | D16: 0
A17: Treatments_Fumigants | B17: 2 | C17: Metam Sodium | D17: -25
A18: Treatments_Fumigants | B18: 3 | C18: Telone II | D18: -40
A19: Treatments_Pre_Emergence | B19: 1 | C19: Acephate, Admire Pro, Imidacloprid(Generic), None, Phorate 20G, Proline, Thimet 20G | D19: 0
A20: Treatments_Pre_Emergence | B20: 2 | C20: AgLogic, Propulse, Velum Total | D20: -10

Sheet PRN
A1: Peanut Rootknot Nematode
A2: Category | B2: Risk Level | C2: Risk Level Description | D2: Points | H2: Category | I2: Max | J2: Min | K2: Risk | L2: Selection
A3: Field_Crop_History_1_Year_Ago | B3: 1 | C3: Clary Sage, Field Corn, Melons, Peanut, Sorghum, Soybean, Sweet Corn, Vegetables | D3: 15 | H3: Pest_History_Nematodes | I3: 40 | J3: 0 | K3: =getRiskValue("A:A",H3,J3,L3,"Single") -> 0 | L3: =IF(ISBLANK(sel_Pest_History_Nematodes_PRN),"",sel_Pest_History_Nematodes_PRN) -> Very Low (NCDA index < 20)
A4: Field_Crop_History_1_Year_Ago | B4: 2 | C4: Cotton, Fallow, Other, Small Grains, Tobacco | D4: 2 | H4: Field_Crop_History_1_Year_Ago | I4: 15 | J4: 2 | K4: 2 | L4: =IF(ISBLANK(sel_Field_Crop_History_1_Year_Ago),"",sel_Field_Crop_History_1_Year_Ago) -> Cotton
A5: Field_Crop_History_2_Years_Ago | B5: 1 | C5: Clary Sage, Field Corn, Melons, Peanut, Sorghum, Soybean, Sweet Corn, Vegetables | D5: 10 | H5: Field_Tillage | I5: 15 | J5: 5 | K5: 15 | L5: =IF(ISBLANK(sel_Field_Tillage),"",sel_Field_Tillage) -> Conventional
A6: Field_Crop_History_2_Years_Ago | B6: 2 | C6: Cotton, Fallow, Other, Small Grains, Tobacco | D6: 3 | H6: Soil_Texture | I6: 15 | J6: 5 | K6: 5 | L6: =IF(ISBLANK(sel_Soil_Texture),"",sel_Soil_Texture) -> Loam
A7: Field_Tillage | B7: 1 | C7: Conventional | D7: 15 | H7: Field_Crop_History_2_Years_Ago | I7: 10 | J7: 3 | K7: 10 | L7: =IF(ISBLANK(sel_Field_Crop_History_2_Years_Ago),"",sel_Field_Crop_History_2_Years_Ago) -> Sorghum
A8: Field_Tillage | B8: 2 | C8: Strip into Residue | D8: 5 | H8: Treatments_Fumigants | I8: 0 | J8: -40 | K8: 0 | L8: =IF(ISBLANK(sel_Treatments_Fumigants),"",sel_Treatments_Fumigants) -> None
A9: Pest_History_Nematodes | B9: 1 | C9: High (NCDA index ≥ 60) | D9: 40 | H9: Treatments_Pre_Emergence | I9: 0 | J9: -10 | K9: =getRiskValue("A:A",H9,J9,L9,"Multi") -> 0 | L9: =IF(ISBLANK(sel_Treatments_Pre_Emergence),"",sel_Treatments_Pre_Emergence) -> None
A10: Pest_History_Nematodes | B10: 2 | C10: Moderate (40 ≤ NCDA index < 60) | D10: 30
A11: Pest_History_Nematodes | B11: 3 | C11: Low (20 ≤ NCDA index < 40) | D11: 25 | H11: Total | I11: =SUMIF(I3:I9,">0") -> 95 | J11: =SUMIF(J3:J9,">0") -> 15 | K11: =MAX(PRN_MinRiskIndex,SUM(K3:K9)) -> 32
A12: Pest_History_Nematodes | B12: 4 | C12: Very Low (NCDA index < 20) | D12: 0
A13: Soil_Texture | B13: 1 | C13: Loamy Sand | D13: 15 | H13: High Risk Index | I13: 65
A14: Soil_Texture | B14: 2 | C14: Sandy Loam | D14: 10 | H14: Moderate Risk Index | I14: 40
A15: Soil_Texture | B15: 3 | C15: Loam | D15: 5
A16: Treatments_Fumigants | B16: 1 | C16: None | D16: 0
A17: Treatments_Fumigants | B17: 2 | C17: Metam Sodium | D17: -25
A18: Treatments_Fumigants | B18: 3 | C18: Telone II | D18: -40
A19: Treatments_Pre_Emergence | B19: 1 | C19: Acephate, Admire Pro, Imidacloprid(Generic), None, Phorate 20G, Proline, Thimet 20G | D19: 0
A20: Treatments_Pre_Emergence | B20: 2 | C20: AgLogic, Propulse, Velum Total | D20: -10

Sheet SN
A1: Sting Nematode
A2: Category | B2: Risk Level | C2: Risk Level Description | D2: Points | H2: Category | I2: Max | J2: Min | K2: Risk | L2: Selection
A3: Field_Crop_History_1_Year_Ago | B3: 1 | C3: Clary Sage, Cotton, Field Corn, Melons, Peanut, Sorghum, Soybean, Sweet Corn, Vegetables | D3: 15 | H3: Pest_History_Nematodes | I3: 40 | J3: 0 | K3: =getRiskValue("A:A",H3,J3,L3,"Single") -> 0 | L3: =IF(ISBLANK(sel_Pest_History_Nematodes_SN),"",sel_Pest_History_Nematodes_SN) -> Very Low (NCDA index < 20)
A4: Field_Crop_History_1_Year_Ago | B4: 2 | C4: Fallow, Other, Small Grains, Tobacco | D4: 2 | H4: Soil_Texture | I4: 20 | J4: 5 | K4: 5 | L4: =IF(ISBLANK(sel_Soil_Texture),"",sel_Soil_Texture) -> Loam
A5: Field_Crop_History_2_Years_Ago | B5: 1 | C5: Clary Sage, Cotton, Field Corn, Melons, Peanut, Sorghum, Soybean, Sweet Corn, Vegetables | D5: 10 | H5: Field_Crop_History_1_Year_Ago | I5: 15 | J5: 2 | K5: 15 | L5: =IF(ISBLANK(sel_Field_Crop_History_1_Year_Ago),"",sel_Field_Crop_History_1_Year_Ago) -> Cotton
A6: Field_Crop_History_2_Years_Ago | B6: 2 | C6: Fallow, Other, Small Grains, Tobacco | D6: 3 | H6: Field_Tillage | I6: 15 | J6: 5 | K6: 15 | L6: =IF(ISBLANK(sel_Field_Tillage),"",sel_Field_Tillage) -> Conventional
A7: Field_Tillage | B7: 1 | C7: Conventional | D7: 15 | H7: Field_Crop_History_2_Years_Ago | I7: 10 | J7: 3 | K7: 10 | L7: =IF(ISBLANK(sel_Field_Crop_History_2_Years_Ago),"",sel_Field_Crop_History_2_Years_Ago) -> Sorghum
A8: Field_Tillage | B8: 2 | C8: Strip into Residue | D8: 5 | H8: Treatments_Fumigants | I8: 0 | J8: -40 | K8: 0 | L8: =IF(ISBLANK(sel_Treatments_Fumigants),"",sel_Treatments_Fumigants) -> None
A9: Pest_History_Nematodes | B9: 1 | C9: High (NCDA index ≥ 60) | D9: 40 | H9: Treatments_Pre_Emergence | I9: 0 | J9: -10 | K9: =getRiskValue("A:A",H9,J9,L9,"Multi") -> 0 | L9: =IF(ISBLANK(sel_Treatments_Pre_Emergence),"",sel_Treatments_Pre_Emergence) -> None
A10: Pest_History_Nematodes | B10: 2 | C10: Moderate (40 ≤ NCDA index < 60) | D10: 30
A11: Pest_History_Nematodes | B11: 3 | C11: Low (20 ≤ NCDA index < 40) | D11: 20 | H11: Total | I11: =SUMIF(I3:I9,">0") -> 100 | J11: =SUMIF(J3:J9,">0") -> 15 | K11: =MAX(SN_MinRiskIndex,SUM(K3:K9)) -> 45
A12: Pest_History_Nematodes | B12: 4 | C12: Very Low (NCDA index < 20) | D12: 0
A13: Soil_Texture | B13: 1 | C13: Loamy Sand | D13: 20 | H13: High Risk Index | I13: 65
A14: Soil_Texture | B14: 2 | C14: Sandy Loam | D14: 10 | H14: Moderate Risk Index | I14: 45
A15: Soil_Texture | B15: 3 | C15: Loam | D15: 5
A16: Treatments_Fumigants | B16: 1 | C16: None | D16: 0
A17: Treatments_Fumigants | B17: 2 | C17: Metam Sodium | D17: -25
A18: Treatments_Fumigants | B18: 3 | C18: Telone II | D18: -40
A19: Treatments_Pre_Emergence | B19: 1 | C19: Acephate, Admire Pro, Imidacloprid(Generic), None, Phorate 20G, Proline, Thimet 20G | D19: 0
A20: Treatments_Pre_Emergence | B20: 2 | C20: AgLogic, Propulse, Velum Total | D20: -10

Sheet SSR
A1: Southern Stem Rot
A2: Category | B2: Risk Level | C2: Risk Level Description | D2: Points | H2: Category | I2: Max | J2: Min | K2: Risk | L2: Selection
A3: Crop_Cultivar | B3: 1 | C3: Champs | D3: 20 | H3: Crop_Cultivar | I3: 20 | J3: 5 | K3: =getRiskValue("A:A",H3,J3,L3,"Single") -> 5 | L3: =IF(ISBLANK(sel_Crop_Cultivar),"",sel_Crop_Cultivar) -> Bailey
A4: Crop_Cultivar | B4: 2 | C4: Sullivan, Wynne | D4: 10 | H4: Pest_History | I4: 20 | J4: 5 | K4: 5 | L4: =IF(ISBLANK(sel_Pest_History_SSR),"",sel_Pest_History_SSR) -> No history
A5: Crop_Cultivar | B5: 3 | C5: Bailey | D5: 5 | H5: Crop_Plant_Population | I5: 15 | J5: 5 | K5: 5 | L5: =IF(ISBLANK(sel_Crop_Plant_Population),"",sel_Crop_Plant_Population) -> 1 to 2 plants/row ft.
A6: Crop_Plant_Population | B6: 1 | C6: 5 or more plants/row ft. | D6: 15 | H6: Field_Crop_History_1_Year_Ago | I6: 12 | J6: 1 | K6: 1 | L6: =IF(ISBLANK(sel_Field_Crop_History_1_Year_Ago),"",sel_Field_Crop_History_1_Year_Ago) -> Cotton
A7: Crop_Plant_Population | B7: 2 | C7: 3 to 4 plants/row ft. | D7: 10 | H7: Crop_Row_Pattern | I7: 10 | J7: 5 | K7: 10 | L7: =IF(ISBLANK(sel_Crop_Row_Pattern),"",sel_Crop_Row_Pattern) -> Single (32-38 inches)
A8: Crop_Plant_Population | B8: 3 | C8: 1 to 2 plants/row ft. | D8: 5 | H8: Field_Irrigation | I8: 10 | J8: 5 | K8: 10 | L8: =IF(ISBLANK(sel_Field_Irrigation),"",sel_Field_Irrigation) -> Irrigated
A9: Crop_Row_Pattern | B9: 1 | C9: Single (32-38 inches) | D9: 10 | H9: Field_Tillage | I9: 10 | J9: 5 | K9: 10 | L9: =IF(ISBLANK(sel_Field_Tillage),"",sel_Field_Tillage) -> Conventional
A10: Crop_Row_Pattern | B10: 2 | C10: Twin (7 to 10 inches) | D10: 5 | H10: Field_Crop_History_2_Years_Ago | I10: 8 | J10: 1 | K10: 1 | L10: =IF(ISBLANK(sel_Field_Crop_History_2_Years_Ago),"",sel_Field_Crop_History_2_Years_Ago) -> Sorghum
A11: Field_Crop_History_1_Year_Ago | B11: 1 | C11: Clary Sage, Melons, Peanut, Soybean, Tobacco, Vegetables | D11: 12 | H11: Field_Crop_History_3_Years_Ago | I11: 4 | J11: 1 | K11: 1 | L11: =IF(ISBLANK(sel_Field_Crop_History_3_Years_Ago),"",sel_Field_Crop_History_3_Years_Ago) -> Sorghum
A12: Field_Crop_History_1_Year_Ago | B12: 2 | C12: Cotton, Fallow, Field Corn, Other, Small Grains, Sorghum, Sweet Corn | D12: 1 | H12: Field_Crop_History_4_Years_Ago | I12: 2 | J12: 1 | K12: 2 | L12: =IF(ISBLANK(sel_Field_Crop_History_4_Years_Ago),"",sel_Field_Crop_History_4_Years_Ago) -> Soybean
A13: Field_Crop_History_2_Years_Ago | B13: 1 | C13: Clary Sage, Melons, Peanut, Soybean, Tobacco, Vegetables | D13: 8 | H13: Treatments_Pre_Emergence | I13: 0 | J13: -10 | K13: =getRiskValue("A:A",H13,J13,L13,"Multi") -> 0 | L13: =IF(ISBLANK(sel_Treatments_Pre_Emergence),"",sel_Treatments_Pre_Emergence) -> None
A14: Field_Crop_History_2_Years_Ago | B14: 2 | C14: Cotton, Fallow, Field Corn, Other, Small Grains, Sorghum, Sweet Corn | D14: 1
A15: Field_Crop_History_3_Years_Ago | B15: 1 | C15: Clary Sage, Melons, Peanut, Soybean, Tobacco, Vegetables | D15: 4 | H15: Total | I15: =SUMIF(I3:I13,">0") -> 111 | J15: =SUMIF(J3:J13,">0") -> 34 | K15: =MAX(SSR_MinRiskIndex,SUM(K3:K13)) -> 50
A16: Field_Crop_History_3_Years_Ago | B16: 2 | C16: Cotton, Fallow, Field Corn, Other, Small Grains, Sorghum, Sweet Corn | D16: 1
A17: Field_Crop_History_4_Years_Ago | B17: 1 | C17: Clary Sage, Melons, Peanut, Soybean, Tobacco, Vegetables | D17: 2 | H17: High Risk Index | I17: 85
A18: Field_Crop_History_4_Years_Ago | B18: 2 | C18: Cotton, Fallow, Field Corn, Other, Small Grains, Sorghum, Sweet Corn | D18: 1 | H18: Moderate Risk Index | I18: 65
A19: Field_Irrigation | B19: 1 | C19: Irrigated | D19: 10
A20: Field_Irrigation | B20: 2 | C20: Periodic Irrigation | D20: 8
A21: Field_Irrigation | B21: 3 | C21: Non-irrigated | D21: 5
A22: Field_Tillage | B22: 1 | C22: Conventional | D22: 10
A23: Field_Tillage | B23: 2 | C23: Strip into Residue | D23: 5
A24: Pest_History | B24: 1 | C24: A problem even with good fungicide program | D24: 20
A25: Pest_History | B25: 2 | C25: Present but not a problem with a good fungicide program | D25: 15
A26: Pest_History | B26: 3 | C26: No history | D26: 5
A27: Treatments_Pre_Emergence | B27: 1 | C27: Acephate, Admire Pro, AgLogic, Imidacloprid(Generic), None, Phorate 20G, Thimet 20G, Velum Total | D27: 0
A28: Treatments_Pre_Emergence | B28: 2 | C28: Proline, Propulse | D28: -10

Sheet WDS
A1: Weeds
A2: Category | B2: Risk Level | C2: Risk Level Description | D2: Points | H2: Category | I2: Max | J2: Min | K2: Risk | L2: Selection
A3: Crop_Plant_Population | B3: 1 | C3: 1 to 2 plants/row ft. | D3: 30 | H3: Weed_Species | I3: 150 | J3: 10 | K3: =getRiskValue("A:A",H3,J3,L3,"Single") -> 150 | L3: =IF(ISBLANK(sel_Weed_Species),"",sel_Weed_Species) -> C. Ragweed and Palmer A. (ALS and PPO Resistant)
A4: Crop_Plant_Population | B4: 2 | C4: 3 to 4 plants/row ft. | D4: 20 | H4: Crop_Plant_Population | I4: 30 | J4: 5 | K4: 30 | L4: =IF(ISBLANK(sel_Crop_Plant_Population),"",sel_Crop_Plant_Population) -> 1 to 2 plants/row ft.
A5: Crop_Plant_Population | B5: 3 | C5: 5 or more plants/row ft. | D5: 5 | H5: Field_Previous_Weed_Control | I5: 30 | J5: 10 | K5: 10 | L5: =IF(ISBLANK(sel_Field_Previous_Weed_Control),"",sel_Field_Previous_Weed_Control) -> Good
A6: Field_Crop_History_1_Year_Ago | B6: 1 | C6: Soybean, Sweetpotato, Tobacco | D6: 15 | H6: Weed_Management_Practices | I6: 30 | J6: -70 | K6: -70 | L6: =IF(ISBLANK(sel_Weed_Management_Practices),"",sel_Weed_Management_Practices) -> PRE + EPOST + MPOST + LPOST + Hand Weed
A7: Field_Crop_History_1_Year_Ago | B7: 2 | C7: Sorghum | D7: 10 | H7: Field_Irrigation | I7: 20 | J7: 0 | K7: 20 | L7: =IF(ISBLANK(sel_Field_Irrigation),"",sel_Field_Irrigation) -> Irrigated
A8: Field_Crop_History_1_Year_Ago | B8: 3 | C8: Cotton | D8: 5 | H8: Field_Crop_History_1_Year_Ago | I8: 15 | J8: 0 | K8: 5 | L8: =IF(ISBLANK(sel_Field_Crop_History_1_Year_Ago),"",sel_Field_Crop_History_1_Year_Ago) -> Cotton
A9: Field_Crop_History_1_Year_Ago | B9: 4 | C9: Field Corn | D9: 0
A10: Field_Irrigation | B10: 1 | C10: Irrigated, Periodic Irrigation | D10: 20 | H10: Total | I10: =SUMIF(I3:I8,">0") -> 275 | J10: =SUMIF(J3:J8,">0") -> 25 | K10: =MAX(WDS_MinRiskIndex,SUM(K3:K8)) -> 145
A11: Field_Irrigation | B11: 2 | C11: Non-irrigated | D11: 0
A12: Field_Previous_Weed_Control | B12: 1 | C12: Poor | D12: 30 | H12: High Risk Index | I12: 150
A13: Field_Previous_Weed_Control | B13: 2 | C13: Fair | D13: 20 | H13: Moderate Risk Index | I13: 85
A14: Field_Previous_Weed_Control | B14: 3 | C14: Good | D14: 10
A15: Weed_Management_Practices | B15: 1 | C15: EPOST, None, PPL | D15: 30
A16: Weed_Management_Practices | B16: 2 | C16: LPOST, PPI, PRE | D16: -5
A17: Weed_Management_Practices | B17: 3 | C17: MPOST, PPI + PRE, PRE + EPOST | D17: -30
A18: Weed_Management_Practices | B18: 4 | C18: PRE + EPOST + MPOST | D18: -40
A19: Weed_Management_Practices | B19: 5 | C19: PRE + EPOST + MPOST + LPOST | D19: -55
A20: Weed_Management_Practices | B20: 6 | C20: PRE + EPOST + Hand Weed, PRE + EPOST + MPOST + Hand Weed, PRE + EPOST + MPOST + LPOST + Hand Weed | D20: -70
A21: Weed_Species | B21: 1 | C21: C. Ragweed and Palmer A. (ALS and PPO Resistant) | D21: 150
A22: Weed_Species | B22: 2 | C22: C. Ragweed and Palmer A. (PPO Resistant), Palmer Amaranth (ALS and PPO Resistant), Palmer Amaranth (PPO Resistant) | D22: 100
A23: Weed_Species | B23: 3 | C23: Annual Grass (ACC and ALS Resistant), C. Ragweed and Palmer A. (ALS Resistant), C. Ragweed and Palmer Amaranth, Palmer Amaranth, Palmer Amaranth (ALS Resistant) | D23: 70
A24: Weed_Species | B24: 4 | C24: Annual Grass (ACC Resistant), Annual Grass (ALS Resistant), C. Ragweed (ALS and PPO Resistance), C. Ragweed (PPO Resistance), Sedges (ALS Resistant) | D24: 50
A25: Weed_Species | B25: 5 | C25: Annual Grass, C. Lambsquarter, C. Ragweed, C. Ragweed (ALS Resistance), Eclipta, Sedges, Sicklepod | D25: 20
A26: Weed_Species | B26: 6 | C26: Others | D26: 10

Sheet THRP
A1: Thrips
A2: Category | B2: Risk Level | C2: Risk Level Description | D2: Points | H2: Category | I2: Max | J2: Min | K2: Risk | L2: Selection
A3: Crop_Plant_Population | B3: 1 | C3: 1 to 2 plants/row ft. | D3: 20 | H3: Crop_Planting_Date | I3: 30 | J3: 10 | K3: =getRiskValue("A:A",H3,J3,L3,"Date") -> 30 | L3: =IF(ISBLANK(sel_Crop_Planting_Date),"",sel_Crop_Planting_Date) -> 2020-05-05
A4: Crop_Plant_Population | B4: 2 | C4: 3 to 4 plants/row ft. | D4: 10 | H4: Crop_Plant_Population | I4: 20 | J4: 5 | K4: =getRiskValue("A:A",H4,J4,L4,"Single") -> 20 | L4: =IF(ISBLANK(sel_Crop_Plant_Population),"",sel_Crop_Plant_Population) -> 1 to 2 plants/row ft.
A5: Crop_Plant_Population | B5: 3 | C5: 5 or more plants/row ft. | D5: 5 | H5: Field_Tillage | I5: 15 | J5: 5 | K5: =getRiskValue("A:A",H5,J5,L5,"Single") -> 15 | L5: =IF(ISBLANK(sel_Field_Tillage),"",sel_Field_Tillage) -> Conventional
A6: Crop_Planting_Date | B6: 1 | C6: Jan 01 to May 05 | D6: 30 | H6: Treatments_Post_Emergence | I6: 0 | J6: -15 | K6: =getRiskValue("A:A",H6,J6,L6,"Multi") -> 0 | L6: =IF(ISBLANK(sel_Treatments_Post_Emergence),"",sel_Treatments_Post_Emergence) -> None
A7: Crop_Planting_Date | B7: 2 | C7: May 06 to May 15 | D7: 15 | H7: Treatments_Pre_Emergence | I7: 0 | J7: -25 | K7: =getRiskValue("A:A",H7,J7,L7,"Multi") -> 0 | L7: =IF(ISBLANK(sel_Treatments_Pre_Emergence),"",sel_Treatments_Pre_Emergence) -> None
A8: Crop_Planting_Date | B8: 3 | C8: May 16 to Dec 31 | D8: 10
A9: Field_Tillage | B9: 1 | C9: Conventional | D9: 15 | H9: Total | I9: =SUMIF(I3:I7,">0") -> 65 | J9: =SUMIF(J3:J7,">0") -> 20 | K9: =MAX(THRP_MinRiskIndex,SUM(K3:K7)) -> 65
A10: Field_Tillage | B10: 2 | C10: Strip into Residue | D10: 5
A11: Treatments_Post_Emergence | B11: 1 | C11: Comite, Danitol, Lannate, Lorsban (Pilot 15 G), None, Non-pyrethroids, Pyrethoids | D11: 0 | H11: High Risk Index | I11: 50
A12: Treatments_Post_Emergence | B12: 2 | C12: Acephate | D12: -15 | H12: Moderate Risk Index | I12: 35
A13: Treatments_Pre_Emergence | B13: 1 | C13: None, Proline, Propulse | D13: 0
A14: Treatments_Pre_Emergence | B14: 2 | C14: Acephate, Admire Pro, AgLogic, Imidacloprid(Generic), Phorate 20G, Thimet 20G, Velum Total | D14: -25
